[Event "Early-Titled-Tuesday-Blitz-September-05-2023"]
[Site "Chess.com"]
[Date "2023.09.05"]
[Round "11"]
[White "LUISMIGUELOV"]
[Black "ElenaPershina"]
[Result "1-0"]
[WhiteElo "2084"]
[BlackElo "2274"]
[TimeControl "180+1"]
[EndTime "10:04:22 PDT"]
[Termination "LUISMIGUELOV won by resignation"]

1. d4 {[%clk 0:02:58.3]} 1... d5 {[%clk 0:02:59.3]} 2. c3 {[%clk 0:02:52.8]}
2... Nf6 {[%clk 0:02:57.6]} 3. Bg5 {[%clk 0:02:50.8]} 3... Ne4 {[%clk 0:02:56]}
4. h4 {[%clk 0:02:49.8]} 4... h6 {[%clk 0:02:50.7]} 5. Bf4 {[%clk 0:02:46.5]}
5... Bf5 {[%clk 0:02:43.6]} 6. Nd2 {[%clk 0:02:45.6]} 6... e6 {[%clk 0:02:40.4]}
7. Nxe4 {[%clk 0:02:45.5]} 7... Bxe4 {[%clk 0:02:39.7]} 8. Qb3 {[%clk
0:02:43.9]} 8... Qc8 {[%clk 0:02:34.9]} 9. f3 {[%clk 0:02:40]} 9... Bh7 {[%clk
0:02:33.9]} 10. e3 {[%clk 0:02:38]} 10... c6 {[%clk 0:02:30.3]} 11. c4 {[%clk
0:02:35.5]} 11... Nd7 {[%clk 0:02:28.2]} 12. a3 {[%clk 0:02:29.9]} 12... Be7
{[%clk 0:02:14.7]} 13. Rc1 {[%clk 0:02:26.9]} 13... dxc4 {[%clk 0:02:01.9]} 14.
Bxc4 {[%clk 0:02:25.2]} 14... Nb6 {[%clk 0:02:01.5]} 15. Bd3 {[%clk 0:02:23.2]}
15... Bxd3 {[%clk 0:01:58.2]} 16. Qxd3 {[%clk 0:02:22.4]} 16... Nd5 {[%clk
0:01:57.6]} 17. Ne2 {[%clk 0:02:19.3]} 17... Nxf4 {[%clk 0:01:55.9]} 18. Nxf4
{[%clk 0:02:18.6]} 18... Qd7 {[%clk 0:01:55.9]} 19. h5 {[%clk 0:02:16.2]} 19...
e5 {[%clk 0:01:53.6]} 20. dxe5 {[%clk 0:02:14.6]} 20... Rd8 {[%clk 0:01:43.5]}
21. Qxd7+ {[%clk 0:02:13.4]} 21... Rxd7 {[%clk 0:01:44.4]} 22. Rd1 {[%clk
0:02:12.7]} 22... Bg5 {[%clk 0:01:35.3]} 23. Rxd7 {[%clk 0:02:06.7]} 23... Kxd7
{[%clk 0:01:36.2]} 24. Ke2 {[%clk 0:02:06.4]} 24... Bxf4 {[%clk 0:01:30]} 25.
exf4 {[%clk 0:02:05.5]} 25... Ke6 {[%clk 0:01:28.9]} 26. g4 {[%clk 0:02:04]}
26... Rd8 {[%clk 0:01:27.6]} 27. Rd1 {[%clk 0:02:03.9]} 27... Rxd1 {[%clk
0:01:12.7]} 28. Kxd1 {[%clk 0:02:03.9]} 28... Kd5 {[%clk 0:01:12.7]} 29. Kd2
{[%clk 0:01:56.9]} 29... Kd4 {[%clk 0:01:12]} 30. b3 {[%clk 0:01:51.8]} 30... c5
{[%clk 0:01:10.2]} 31. a4 {[%clk 0:01:50.6]} 31... b6 {[%clk 0:01:09.4]} 32. Kc2
{[%clk 0:01:42.8]} 32... a6 {[%clk 0:00:52.1]} 33. Kd2 {[%clk 0:01:42.6]} 33...
b5 {[%clk 0:00:45.7]} 34. axb5 {[%clk 0:01:42.4]} 34... axb5 {[%clk 0:00:46.6]}
35. Kc2 {[%clk 0:01:42.5]} 35... Kd5 {[%clk 0:00:15.1]} 36. Kc3 {[%clk
0:01:39.1]} 36... g6 {[%clk 0:00:14.2]} 37. g5 {[%clk 0:01:19.3]} 1-0

[Event "Early-Titled-Tuesday-Blitz-September-05-2023"]
[Site "Chess.com"]
[Date "2023.09.05"]
[Round "11"]
[White "Boundless_Strike"]
[Black "suyu28"]
[Result "1-0"]
[WhiteElo "2589"]
[BlackElo "2713"]
[TimeControl "180+1"]
[EndTime "10:04:25 PDT"]
[Termination "Boundless_Strike won by resignation"]

1. d3 {[%clk 0:02:55.7]} 1... d5 {[%clk 0:02:59.4]} 2. e4 {[%clk 0:02:56.6]}
2... dxe4 {[%clk 0:02:59.1]} 3. Nc3 {[%clk 0:02:56.5]} 3... exd3 {[%clk
0:02:56.3]} 4. Bxd3 {[%clk 0:02:57.4]} 4... Nf6 {[%clk 0:02:55.4]} 5. Bg5 {[%clk
0:02:57.1]} 5... Bg4 {[%clk 0:02:53.3]} 6. f3 {[%clk 0:02:56.8]} 6... Bh5 {[%clk
0:02:52.6]} 7. Qe2 {[%clk 0:02:57.1]} 7... Nbd7 {[%clk 0:02:52]} 8. O-O-O {[%clk
0:02:56.7]} 8... e6 {[%clk 0:02:49.8]} 9. Nh3 {[%clk 0:02:56.6]} 9... Be7 {[%clk
0:02:47.3]} 10. Nf4 {[%clk 0:02:56.4]} 10... Bg6 {[%clk 0:02:47.3]} 11. Bxg6
{[%clk 0:02:56.6]} 11... hxg6 {[%clk 0:02:47.4]} 12. Nxe6 {[%clk 0:02:57.2]}
12... fxe6 {[%clk 0:02:01.9]} 13. Qxe6 {[%clk 0:02:58.1]} 13... Nh7 {[%clk
0:02:01]} 14. Qxg6+ {[%clk 0:01:26.1]} 14... Kf8 {[%clk 0:01:59.9]} 15. Qf5+
{[%clk 0:01:24.9]} 15... Kg8 {[%clk 0:01:21.1]} 16. Bxe7 {[%clk 0:01:10.5]}
16... Qxe7 {[%clk 0:01:22]} 17. Rxd7 {[%clk 0:01:11]} 17... Qg5+ {[%clk
0:01:20.9]} 18. Qxg5 {[%clk 0:01:10.4]} 18... Nxg5 {[%clk 0:01:21.8]} 19. Rxc7
{[%clk 0:01:10.9]} 19... b5 {[%clk 0:01:21.6]} 20. Nxb5 {[%clk 0:01:06.9]} 20...
Re8 {[%clk 0:01:21.8]} 21. Nd4 {[%clk 0:01:02.7]} 21... Rh4 {[%clk 0:01:21]} 22.
c3 {[%clk 0:01:01.7]} 22... Rf4 {[%clk 0:01:19]} 23. h3 {[%clk 0:01:00.8]} 23...
a5 {[%clk 0:01:18.7]} 24. Kd2 {[%clk 0:00:59.2]} 24... a4 {[%clk 0:01:19]} 25.
Re1 {[%clk 0:00:57.6]} 25... Rb8 {[%clk 0:01:18.4]} 26. Kc2 {[%clk 0:00:57.8]}
26... Nf7 {[%clk 0:01:16.3]} 27. Ree7 {[%clk 0:00:56.6]} 27... g5 {[%clk
0:01:15.7]} 28. Ra7 {[%clk 0:00:49.4]} 28... Rc8 {[%clk 0:01:13.3]} 29. Re4
{[%clk 0:00:43.5]} 29... Rxe4 {[%clk 0:01:11.6]} 30. fxe4 {[%clk 0:00:43.4]}
30... Nd6 {[%clk 0:01:11.9]} 31. Rxa4 {[%clk 0:00:36.7]} 31... Nxe4 {[%clk
0:01:10.7]} 32. Ne6 {[%clk 0:00:36.9]} 32... Nf2 {[%clk 0:01:07.5]} 33. Nxg5
{[%clk 0:00:35.4]} 33... Re8 {[%clk 0:01:07.8]} 34. Rd4 {[%clk 0:00:32.8]} 34...
Kg7 {[%clk 0:01:06.8]} 35. a4 {[%clk 0:00:31]} 35... Kg6 {[%clk 0:01:06.5]} 36.
Nf3 {[%clk 0:00:31.4]} 1-0

[Event "Early-Titled-Tuesday-Blitz-September-05-2023"]
[Site "Chess.com"]
[Date "2023.09.05"]
[Round "11"]
[White "merinasian"]
[Black "hsd2016"]
[Result "0-1"]
[WhiteElo "2421"]
[BlackElo "2286"]
[TimeControl "180+1"]
[EndTime "10:04:25 PDT"]
[Termination "hsd2016 won by resignation"]

1. d4 {[%clk 0:03:00.9]} 1... d5 {[%clk 0:02:56.9]} 2. Nf3 {[%clk 0:03:01.4]}
2... Nf6 {[%clk 0:02:56.3]} 3. g3 {[%clk 0:03:01.7]} 3... g6 {[%clk 0:02:54.2]}
4. Bg2 {[%clk 0:03:02.2]} 4... Bg7 {[%clk 0:02:51.5]} 5. O-O {[%clk 0:03:03.1]}
5... O-O {[%clk 0:02:48.6]} 6. c4 {[%clk 0:03:04]} 6... c6 {[%clk 0:02:44.1]} 7.
b3 {[%clk 0:03:03.8]} 7... Nbd7 {[%clk 0:02:41.3]} 8. Bb2 {[%clk 0:03:04]} 8...
Ne4 {[%clk 0:02:37.3]} 9. Nfd2 {[%clk 0:03:04.2]} 9... Nxd2 {[%clk 0:02:34.8]}
10. Qxd2 {[%clk 0:03:03.5]} 10... Nf6 {[%clk 0:02:35.7]} 11. Nc3 {[%clk
0:03:03.6]} 11... Bf5 {[%clk 0:02:15.3]} 12. Rfd1 {[%clk 0:03:03.5]} 12... e6
{[%clk 0:01:50.5]} 13. f3 {[%clk 0:03:02.8]} 13... dxc4 {[%clk 0:00:48.6]} 14.
g4 {[%clk 0:02:56.9]} 14... Bxg4 {[%clk 0:00:42]} 15. fxg4 {[%clk 0:02:57.2]}
15... Nxg4 {[%clk 0:00:42.9]} 16. bxc4 {[%clk 0:02:50.1]} 16... Qh4 {[%clk
0:00:42.2]} 17. h3 {[%clk 0:02:49.1]} 17... Bh6 {[%clk 0:00:40.5]} 18. hxg4
{[%clk 0:02:19.8]} 18... Bxd2 {[%clk 0:00:38.8]} 19. Rxd2 {[%clk 0:02:20.2]}
19... Qxg4 {[%clk 0:00:37.9]} 20. d5 {[%clk 0:02:14.6]} 20... exd5 {[%clk
0:00:26.7]} 21. cxd5 {[%clk 0:02:13.8]} 21... Qf4 {[%clk 0:00:22.9]} 22. Ne4
{[%clk 0:02:10.6]} 22... Qe3+ {[%clk 0:00:20.6]} 23. Kh1 {[%clk 0:02:09.3]}
23... f5 {[%clk 0:00:20.3]} 24. dxc6 {[%clk 0:01:56.6]} 24... fxe4 {[%clk
0:00:19.7]} 25. Rd7 {[%clk 0:01:56.9]} 25... Rf7 {[%clk 0:00:05.4]} 26. cxb7
{[%clk 0:01:55.5]} 26... Rb8 {[%clk 0:00:05.5]} 27. Rad1 {[%clk 0:01:51.5]}
27... Qh6+ {[%clk 0:00:04.1]} 28. Kg1 {[%clk 0:01:51.2]} 28... Qe3+ {[%clk
0:00:04.8]} 29. Kh1 {[%clk 0:01:51.6]} 29... Rxd7 {[%clk 0:00:05.5]} 30. Rxd7
{[%clk 0:01:51]} 30... Qh6+ {[%clk 0:00:06.2]} 31. Kg1 {[%clk 0:01:50.6]} 31...
Qe3+ {[%clk 0:00:06.9]} 32. Kh2 {[%clk 0:01:50.7]} 32... Qf4+ {[%clk 0:00:06.4]}
33. Kh1 {[%clk 0:01:47.6]} 33... Qh6+ {[%clk 0:00:04]} 34. Kg1 {[%clk
0:01:47.4]} 34... Qe3+ {[%clk 0:00:01.8]} 35. Kf1 {[%clk 0:01:43.1]} 35... Qf4+
{[%clk 0:00:02.3]} 36. Ke1 {[%clk 0:01:42.7]} 36... Qg3+ {[%clk 0:00:02.9]} 37.
Kd2 {[%clk 0:01:33.3]} 37... Qxg2 {[%clk 0:00:03.1]} 38. Rg7+ {[%clk 0:01:34]}
38... Kf8 {[%clk 0:00:02.8]} 39. Rxh7 {[%clk 0:01:34.9]} 39... e3+ {[%clk
0:00:03.5]} 40. Kc1 {[%clk 0:01:34.7]} 40... Rxb7 {[%clk 0:00:04.4]} 41. Rh8+
{[%clk 0:01:34.1]} 41... Ke7 {[%clk 0:00:05]} 42. Rh7+ {[%clk 0:01:34.3]} 42...
Ke6 {[%clk 0:00:05.7]} 43. Rxb7 {[%clk 0:01:34.1]} 43... Qxb7 {[%clk 0:00:06.6]}
0-1

[Event "Early-Titled-Tuesday-Blitz-September-05-2023"]
[Site "Chess.com"]
[Date "2023.09.05"]
[Round "11"]
[White "Fleetw00dMac"]
[Black "Thecourseoisildur"]
[Result "0-1"]
[WhiteElo "2458"]
[BlackElo "2584"]
[TimeControl "180+1"]
[EndTime "10:04:26 PDT"]
[Termination "Thecourseoisildur won on time"]

1. d4 {[%clk 0:03:00.9]} 1... Nf6 {[%clk 0:03:00]} 2. c4 {[%clk 0:03:00.1]} 2...
c5 {[%clk 0:03:00.6]} 3. d5 {[%clk 0:02:59.7]} 3... b5 {[%clk 0:03:01.1]} 4.
cxb5 {[%clk 0:02:59.5]} 4... a6 {[%clk 0:03:01.3]} 5. bxa6 {[%clk 0:02:59.7]}
5... g6 {[%clk 0:03:00.7]} 6. Nc3 {[%clk 0:03:00.2]} 6... Bg7 {[%clk 0:03:00.1]}
7. Nf3 {[%clk 0:03:00.3]} 7... O-O {[%clk 0:03:00.1]} 8. g3 {[%clk 0:02:59.4]}
8... Qa5 {[%clk 0:02:59.8]} 9. Bd2 {[%clk 0:02:57.6]} 9... Qxa6 {[%clk
0:02:59.7]} 10. Bg2 {[%clk 0:02:43.3]} 10... d6 {[%clk 0:02:59.6]} 11. O-O
{[%clk 0:02:42.4]} 11... Nbd7 {[%clk 0:02:57.2]} 12. Ne1 {[%clk 0:01:57.4]}
12... Bb7 {[%clk 0:02:55.4]} 13. e4 {[%clk 0:01:49.2]} 13... c4 {[%clk
0:02:52.6]} 14. h3 {[%clk 0:01:34.6]} 14... Nc5 {[%clk 0:02:51.2]} 15. Be3
{[%clk 0:01:30.2]} 15... Nfd7 {[%clk 0:02:47.8]} 16. Qd2 {[%clk 0:01:09.6]}
16... Rfb8 {[%clk 0:02:39.6]} 17. Nc2 {[%clk 0:01:06.4]} 17... Nd3 {[%clk
0:02:37]} 18. Na3 {[%clk 0:00:56]} 18... Bc8 {[%clk 0:02:29]} 19. Rab1 {[%clk
0:00:55.5]} 19... Nxb2 {[%clk 0:02:20.8]} 20. Rxb2 {[%clk 0:00:48.4]} 20... Rxb2
{[%clk 0:02:14.3]} 21. Qxb2 {[%clk 0:00:47.7]} 21... Qxa3 {[%clk 0:02:14.8]} 22.
Qxa3 {[%clk 0:00:47.8]} 22... Rxa3 {[%clk 0:02:15.6]} 23. Nb5 {[%clk 0:00:46.5]}
23... Rxa2 {[%clk 0:02:14.4]} 24. Rc1 {[%clk 0:00:46.5]} 24... Ba6 {[%clk
0:02:08.1]} 25. Nc7 {[%clk 0:00:44.1]} 25... c3 {[%clk 0:02:06]} 26. Nxa6 {[%clk
0:00:24.3]} 26... Rxa6 {[%clk 0:02:06.9]} 27. Bf1 {[%clk 0:00:22.5]} 27... Ra5
{[%clk 0:01:58.5]} 28. Kg2 {[%clk 0:00:20.6]} 28... Nc5 {[%clk 0:01:55.4]} 29.
Bxc5 {[%clk 0:00:17.6]} 29... Rxc5 {[%clk 0:01:56.3]} 30. Bd3 {[%clk 0:00:16.8]}
30... Kf8 {[%clk 0:01:55]} 31. Bc2 {[%clk 0:00:14.8]} 31... Bd4 {[%clk
0:01:49.7]} 32. f4 {[%clk 0:00:13.8]} 32... Ra5 {[%clk 0:01:46]} 33. Kf3 {[%clk
0:00:11.3]} 33... Ra2 {[%clk 0:01:45.9]} 34. h4 {[%clk 0:00:04.1]} 34... h5
{[%clk 0:01:44.7]} 35. Ke2 {[%clk 0:00:03.6]} 35... Ke8 {[%clk 0:01:44.8]} 36.
Kf3 {[%clk 0:00:02.5]} 36... Kd7 {[%clk 0:01:42.9]} 37. f5 {[%clk 0:00:02.8]}
37... Kc7 {[%clk 0:01:41.3]} 38. fxg6 {[%clk 0:00:02.4]} 38... fxg6 {[%clk
0:01:41.3]} 39. e5 {[%clk 0:00:02.1]} 39... Bxe5 {[%clk 0:01:40.7]} 40. Bxg6
{[%clk 0:00:01.6]} 40... Rd2 {[%clk 0:01:28.5]} 0-1

[Event "Early-Titled-Tuesday-Blitz-September-05-2023"]
[Site "Chess.com"]
[Date "2023.09.05"]
[Round "11"]
[White "amanjazu"]
[Black "FoxOnTheRun97"]
[Result "0-1"]
[WhiteElo "2377"]
[BlackElo "2540"]
[TimeControl "180+1"]
[EndTime "10:04:26 PDT"]
[Termination "FoxOnTheRun97 won by checkmate"]

1. b3 {[%clk 0:03:00.9]} 1... Nf6 {[%clk 0:02:59.2]} 2. Bb2 {[%clk 0:03:01.8]}
2... d5 {[%clk 0:02:58.6]} 3. e3 {[%clk 0:03:00.6]} 3... Bf5 {[%clk 0:02:59]} 4.
f4 {[%clk 0:02:48.3]} 4... e6 {[%clk 0:02:56.8]} 5. Nf3 {[%clk 0:02:48.7]} 5...
c5 {[%clk 0:02:55.7]} 6. Bb5+ {[%clk 0:02:46.5]} 6... Nc6 {[%clk 0:02:55.3]} 7.
O-O {[%clk 0:02:46.9]} 7... Be7 {[%clk 0:02:54.9]} 8. d3 {[%clk 0:02:20.3]} 8...
h6 {[%clk 0:02:53.9]} 9. Nbd2 {[%clk 0:02:14.3]} 9... O-O {[%clk 0:02:53]} 10.
Bxc6 {[%clk 0:02:07]} 10... bxc6 {[%clk 0:02:52.9]} 11. Qe2 {[%clk 0:02:07.9]}
11... Bh7 {[%clk 0:02:41.1]} 12. e4 {[%clk 0:02:05.9]} 12... c4 {[%clk
0:02:33.3]} 13. bxc4 {[%clk 0:02:02.2]} 13... dxe4 {[%clk 0:02:31.7]} 14. Nxe4
{[%clk 0:01:52.1]} 14... Nxe4 {[%clk 0:02:22.3]} 15. dxe4 {[%clk 0:01:53]} 15...
Qb6+ {[%clk 0:02:18]} 16. Bd4 {[%clk 0:01:52.4]} 16... Bc5 {[%clk 0:02:18.7]}
17. c3 {[%clk 0:01:46.3]} 17... Rad8 {[%clk 0:02:08.7]} 18. Qe3 {[%clk
0:01:43.4]} 18... Bxd4 {[%clk 0:02:03.7]} 19. cxd4 {[%clk 0:01:44.3]} 19... Rd7
{[%clk 0:01:56.5]} 20. a4 {[%clk 0:01:29.2]} 20... Rfd8 {[%clk 0:01:54.9]} 21.
a5 {[%clk 0:01:23.7]} 21... Qa6 {[%clk 0:01:53.2]} 22. Rfd1 {[%clk 0:01:09.2]}
22... Qxc4 {[%clk 0:01:51.5]} 23. Ne5 {[%clk 0:01:08.8]} 23... Qa6 {[%clk
0:01:46.5]} 24. Nxd7 {[%clk 0:01:08.2]} 24... Rxd7 {[%clk 0:01:47.4]} 25. Rdb1
{[%clk 0:01:03]} 25... Bg6 {[%clk 0:01:44.6]} 26. Rb4 {[%clk 0:00:48]} 26... Kh7
{[%clk 0:01:42.3]} 27. Rf1 {[%clk 0:00:46.5]} 27... f5 {[%clk 0:01:33.4]} 28.
exf5 {[%clk 0:00:43.1]} 28... Bxf5 {[%clk 0:01:33.4]} 29. Ra1 {[%clk 0:00:40.8]}
29... Rd5 {[%clk 0:01:29.8]} 30. Rba4 {[%clk 0:00:33.4]} 30... Qb5 {[%clk
0:01:26.2]} 31. a6 {[%clk 0:00:30.7]} 31... Qb2 {[%clk 0:01:25.6]} 32. Qc1
{[%clk 0:00:26]} 32... Qe2 {[%clk 0:01:22.5]} 33. R1a2 {[%clk 0:00:18.2]} 33...
Qe4 {[%clk 0:01:18.7]} 34. Qd2 {[%clk 0:00:16]} 34... Rb5 {[%clk 0:01:14.1]} 35.
Rb2 {[%clk 0:00:13.4]} 35... Rxb2 {[%clk 0:01:11.7]} 36. Qxb2 {[%clk 0:00:14.3]}
36... Qe1# {[%clk 0:01:12.3]} 0-1

[Event "Early-Titled-Tuesday-Blitz-September-05-2023"]
[Site "Chess.com"]
[Date "2023.09.05"]
[Round "11"]
[White "Let_it_be_1"]
[Black "bazar-wokzal"]
[Result "1-0"]
[WhiteElo "2638"]
[BlackElo "2514"]
[TimeControl "180+1"]
[EndTime "10:04:33 PDT"]
[Termination "Let_it_be_1 won by resignation"]

1. e4 {[%clk 0:02:54.1]} 1... Nc6 {[%clk 0:02:59.6]} 2. Nf3 {[%clk 0:02:53.5]}
2... d5 {[%clk 0:02:58.6]} 3. exd5 {[%clk 0:02:53.4]} 3... Qxd5 {[%clk
0:02:59.5]} 4. Nc3 {[%clk 0:02:53.7]} 4... Qa5 {[%clk 0:02:59.1]} 5. d4 {[%clk
0:02:53.8]} 5... Bg4 {[%clk 0:02:58.7]} 6. Bb5 {[%clk 0:02:51.8]} 6... O-O-O
{[%clk 0:02:58.2]} 7. Bxc6 {[%clk 0:02:51.1]} 7... bxc6 {[%clk 0:02:59.1]} 8.
Qd3 {[%clk 0:02:41.1]} 8... c5 {[%clk 0:02:56.7]} 9. d5 {[%clk 0:02:36.1]} 9...
e6 {[%clk 0:02:56.6]} 10. h3 {[%clk 0:02:34.4]} 10... Rxd5 {[%clk 0:02:50.6]}
11. Qe2 {[%clk 0:02:26.2]} 11... Bh5 {[%clk 0:02:42.2]} 12. O-O {[%clk
0:02:18.2]} 12... Nf6 {[%clk 0:02:41.4]} 13. Nxd5 {[%clk 0:02:16.7]} 13... exd5
{[%clk 0:02:41.3]} 14. Qe5 {[%clk 0:02:06.1]} 14... Bd6 {[%clk 0:02:38]} 15.
Qf5+ {[%clk 0:02:05.5]} 15... Kb8 {[%clk 0:02:33.9]} 16. Bf4 {[%clk 0:02:05.1]}
16... Bg6 {[%clk 0:02:26.9]} 17. Qg5 {[%clk 0:02:05.4]} 17... h6 {[%clk
0:02:18.5]} 18. Qh4 {[%clk 0:02:04.5]} 18... Qb4 {[%clk 0:02:17.6]} 19. Bxd6
{[%clk 0:01:57.9]} 19... Qxh4 {[%clk 0:02:02.3]} 20. Nxh4 {[%clk 0:01:57.8]}
20... cxd6 {[%clk 0:02:02.7]} 21. Nxg6 {[%clk 0:01:58]} 21... fxg6 {[%clk
0:02:03.1]} 22. Rfe1 {[%clk 0:01:55.7]} 22... Rd8 {[%clk 0:01:53.1]} 23. Re7
{[%clk 0:01:53.7]} 23... Rd7 {[%clk 0:01:53]} 24. Rxd7 {[%clk 0:01:50.6]} 24...
Nxd7 {[%clk 0:01:53.3]} 25. Re1 {[%clk 0:01:48.3]} 25... Ne5 {[%clk 0:01:51.2]}
26. f4 {[%clk 0:01:46.7]} 26... Nc4 {[%clk 0:01:51.6]} 27. c3 {[%clk 0:01:13.7]}
27... Kc7 {[%clk 0:01:50]} 28. b3 {[%clk 0:01:13.5]} 28... Na3 {[%clk
0:01:47.8]} 29. Re7+ {[%clk 0:01:13.5]} 29... Kb6 {[%clk 0:01:48.1]} 30. Rxg7
{[%clk 0:01:13.5]} 30... Nb1 {[%clk 0:01:45.5]} 31. Rxg6 {[%clk 0:01:11.7]}
31... Nxc3 {[%clk 0:01:42.4]} 32. Rxd6+ {[%clk 0:01:04]} 32... Kc7 {[%clk
0:01:42.5]} 33. Rxh6 {[%clk 0:01:04.1]} 33... Nxa2 {[%clk 0:01:37.3]} 34. Kf2
{[%clk 0:01:00.7]} 34... Nc1 {[%clk 0:01:36.6]} 35. Ke3 {[%clk 0:01:00.3]} 35...
Nxb3 {[%clk 0:01:36.6]} 36. f5 {[%clk 0:00:58.9]} 36... c4 {[%clk 0:01:36.2]}
37. f6 {[%clk 0:00:54.3]} 37... Kd6 {[%clk 0:01:26.6]} 38. f7+ {[%clk
0:00:41.3]} 38... Ke7 {[%clk 0:01:27]} 39. Rf6 {[%clk 0:00:41]} 39... d4+ {[%clk
0:01:27.5]} 40. Ke2 {[%clk 0:00:33.5]} 40... Kf8 {[%clk 0:01:27.6]} 41. Rc6
{[%clk 0:00:28.2]} 41... d3+ {[%clk 0:01:23.3]} 42. Kd1 {[%clk 0:00:28.1]} 42...
Kxf7 {[%clk 0:01:19.8]} 43. Rxc4 {[%clk 0:00:28]} 43... a5 {[%clk 0:01:18.6]}
44. Rc3 {[%clk 0:00:27.7]} 44... a4 {[%clk 0:01:18.6]} 45. Rxd3 {[%clk
0:00:27.7]} 45... Kf6 {[%clk 0:01:18.6]} 46. Rxb3 {[%clk 0:00:27.5]} 46... axb3
{[%clk 0:01:18.4]} 47. Kc1 {[%clk 0:00:27.9]} 1-0

[Event "Early-Titled-Tuesday-Blitz-September-05-2023"]
[Site "Chess.com"]
[Date "2023.09.05"]
[Round "11"]
[White "Herzog2012"]
[Black "FGHSMN"]
[Result "0-1"]
[WhiteElo "2485"]
[BlackElo "2898"]
[TimeControl "180+1"]
[EndTime "10:04:34 PDT"]
[Termination "FGHSMN won by resignation"]

1. e4 {[%clk 0:03:00.9]} 1... c5 {[%clk 0:02:59]} 2. Nf3 {[%clk 0:03:00.9]} 2...
d6 {[%clk 0:02:59.5]} 3. d4 {[%clk 0:03:01.4]} 3... cxd4 {[%clk 0:03:00.4]} 4.
Nxd4 {[%clk 0:03:02.3]} 4... Nf6 {[%clk 0:03:00.5]} 5. Nc3 {[%clk 0:03:02.4]}
5... a6 {[%clk 0:03:01.2]} 6. Bc4 {[%clk 0:02:58.4]} 6... e6 {[%clk 0:03:01]} 7.
O-O {[%clk 0:02:56.6]} 7... b5 {[%clk 0:03:00.4]} 8. Bb3 {[%clk 0:02:56.4]} 8...
Be7 {[%clk 0:03:00.7]} 9. Qf3 {[%clk 0:02:53.5]} 9... Qc7 {[%clk 0:03:00.1]} 10.
Qg3 {[%clk 0:02:48.3]} 10... O-O {[%clk 0:02:58.3]} 11. Bh6 {[%clk 0:02:47.3]}
11... Nh5 {[%clk 0:02:42.5]} 12. Qg4 {[%clk 0:02:37.6]} 12... Qc5 {[%clk
0:02:42.4]} 13. Be3 {[%clk 0:02:00.5]} 13... Nf6 {[%clk 0:02:41.2]} 14. Qg3
{[%clk 0:02:00.2]} 14... Qh5 {[%clk 0:02:32.8]} 15. f3 {[%clk 0:01:53.1]} 15...
Bb7 {[%clk 0:02:28.4]} 16. a4 {[%clk 0:01:49.5]} 16... b4 {[%clk 0:02:26.5]} 17.
Nce2 {[%clk 0:01:49.5]} 17... Nc6 {[%clk 0:02:14.3]} 18. Nf4 {[%clk 0:01:45.6]}
18... Nxd4 {[%clk 0:02:14.1]} 19. Bxd4 {[%clk 0:01:41.3]} 19... Qh6 {[%clk
0:02:14]} 20. Nd3 {[%clk 0:01:16.8]} 20... e5 {[%clk 0:02:06]} 21. Bb6 {[%clk
0:01:04.7]} 21... a5 {[%clk 0:01:59.5]} 22. Qf2 {[%clk 0:01:00.8]} 22... Nh5
{[%clk 0:01:55.1]} 23. Be3 {[%clk 0:00:59.9]} 23... Qg6 {[%clk 0:01:54.9]} 24.
Nc1 {[%clk 0:00:49.1]} 24... Kh8 {[%clk 0:01:53.3]} 25. Qd2 {[%clk 0:00:26.3]}
25... f5 {[%clk 0:01:35]} 26. exf5 {[%clk 0:00:20.5]} 26... Qxf5 {[%clk
0:01:35.9]} 27. Ne2 {[%clk 0:00:13.3]} 27... Qg6 {[%clk 0:01:31.5]} 28. Bd5
{[%clk 0:00:09.2]} 28... Bxd5 {[%clk 0:01:29.9]} 29. Qxd5 {[%clk 0:00:10.1]}
29... Qxc2 {[%clk 0:01:30.3]} 30. Rf2 {[%clk 0:00:08.4]} 30... Qxb2 {[%clk
0:01:28.4]} 31. Re1 {[%clk 0:00:04.9]} 31... Qa3 {[%clk 0:01:27.4]} 32. Nd4
{[%clk 0:00:03.7]} 32... exd4 {[%clk 0:01:23.9]} 33. Bxd4 {[%clk 0:00:04.3]}
33... Bf6 {[%clk 0:01:24.6]} 34. Bb6 {[%clk 0:00:01.6]} 34... g6 {[%clk
0:01:22.7]} 35. Qxd6 {[%clk 0:00:01.4]} 35... Qxa4 {[%clk 0:01:21.6]} 36. Qc6
{[%clk 0:00:02.2]} 36... Qxc6 {[%clk 0:01:21.3]} 0-1

[Event "Early-Titled-Tuesday-Blitz-September-05-2023"]
[Site "Chess.com"]
[Date "2023.09.05"]
[Round "11"]
[White "Amirreza_p"]
[Black "falzehope0"]
[Result "0-1"]
[WhiteElo "2564"]
[BlackElo "2475"]
[TimeControl "180+1"]
[EndTime "10:04:40 PDT"]
[Termination "falzehope0 won by checkmate"]

1. Nf3 {[%clk 0:02:58.8]} 1... d5 {[%clk 0:02:59.3]} 2. c4 {[%clk 0:02:58]} 2...
e6 {[%clk 0:03:00.2]} 3. g3 {[%clk 0:02:55.9]} 3... f5 {[%clk 0:03:00.4]} 4. Bg2
{[%clk 0:02:54]} 4... Bd6 {[%clk 0:03:01]} 5. O-O {[%clk 0:02:54]} 5... Nf6
{[%clk 0:03:01.6]} 6. b3 {[%clk 0:02:54]} 6... f4 {[%clk 0:03:00.8]} 7. Bb2
{[%clk 0:02:52.3]} 7... O-O {[%clk 0:02:59.8]} 8. Ne5 {[%clk 0:02:34.7]} 8...
fxg3 {[%clk 0:02:54.7]} 9. hxg3 {[%clk 0:02:33]} 9... Bxe5 {[%clk 0:02:55]} 10.
Bxe5 {[%clk 0:02:31.3]} 10... Ng4 {[%clk 0:02:55.7]} 11. Bb2 {[%clk 0:02:29]}
11... Qg5 {[%clk 0:02:54.4]} 12. Bf3 {[%clk 0:02:21.1]} 12... Nc6 {[%clk
0:02:27.5]} 13. cxd5 {[%clk 0:01:53.9]} 13... exd5 {[%clk 0:02:20.9]} 14. Kg2
{[%clk 0:01:34.9]} 14... Nce5 {[%clk 0:01:58.7]} 15. Bxd5+ {[%clk 0:01:28.3]}
15... Kh8 {[%clk 0:01:51.9]} 16. f4 {[%clk 0:01:24.1]} 16... Qd8 {[%clk
0:01:22.1]} 17. Be4 {[%clk 0:00:53.3]} 17... Ng6 {[%clk 0:01:18.4]} 18. Nc3
{[%clk 0:00:47.3]} 18... c6 {[%clk 0:01:13.7]} 19. Rh1 {[%clk 0:00:45.6]} 19...
Bf5 {[%clk 0:01:05.5]} 20. Bxf5 {[%clk 0:00:45.3]} 20... Rxf5 {[%clk 0:01:06.4]}
21. e4 {[%clk 0:00:45.7]} 21... Nxf4+ {[%clk 0:00:49.9]} 22. gxf4 {[%clk
0:00:45.6]} 22... Rxf4 {[%clk 0:00:50.1]} 23. Rf1 {[%clk 0:00:39.5]} 23... Ne3+
{[%clk 0:00:41.5]} 24. dxe3 {[%clk 0:00:10.3]} 24... Qg5+ {[%clk 0:00:40.6]} 25.
Kh2 {[%clk 0:00:04.6]} 25... Rh4# {[%clk 0:00:40.5]} 0-1